bitfinex-derivatives/quotes_ETHF0:USTF0_20240901
["timestamp","ask_amount","ask_price","bid_price","bid_amount"]
[1725190481743,3.92297695,2468.8,2468.4,0.00606968]
[1725190482048,0.7506,2468.8,2468.4,0.00606968]
[1725190482231,0.7506,2468.8,2468.4,0.74876968]
[1725190482637,0.7506,2468.8,2468.5,0.389]
[1725190485251,3.92297695,2468.8,2468.5,0.389]
[1725190485640,3.92297695,2468.8,2468.4,0.00606968]
[1725190485839,3.27368064,2468.7,2468.4,0.00606968]
[1725190486041,3.17237695,2468.7,2468.4,0.00606968]
[1725190486254,7.76013727,2468.7,2468.4,0.00606968]
[1725190486750,4.58776032,2468.7,2468.4,0.00606968]
[1725190487460,7.76013727,2468.7,2468.4,0.00606968]
[1725190487953,0.101308,2468.6,2468.4,0.00606968]
[1725190488150,7.76013727,2468.7,2468.4,0.00606968]
[1725190488451,0.10130698,2468.6,2468.4,0.00606968]
[1725190488654,7.76013727,2468.7,2468.4,0.00606968]
[1725190488841,0.3653,2468.5,2468.4,0.00606968]
[1725190495243,0.46661392,2468.5,2468.4,0.00606968]
[1725190495849,0.3653,2468.5,2468.4,0.00606968]
[1725190499652,0.46661112,2468.5,2468.4,0.00606968]
[1725190500054,0.3653,2468.5,2468.4,0.00606968]
[1725190501349,4.4165,2468.5,2468.4,0.00606968]
[1725190502256,0.3653,2468.5,2468.4,0.00606968]
[1725190503350,0.466612,2468.5,2468.4,0.00606968]
[1725190503758,0.3653,2468.5,2468.4,0.00606968]
[1725190504359,0.46661285,2468.5,2468.4,0.00606968]
[1725190504853,0.46661219,2468.5,2468.4,0.00606968]
[1725190506856,0.466608,2468.5,2468.4,0.00606968]
[1725190510467,3.63898495,2468.5,2468.4,0.00606968]
[1725190513651,3.53767695,2468.5,2468.4,0.00606968]
[1725190514064,3.63898755,2468.5,2468.4,0.00606968]
[1725190515665,3.27368755,2468.5,2468.4,0.00606968]
[1725190516866,3.27368488,2468.5,2468.4,0.00606968]
[1725190520268,3.27368806,2468.5,2468.4,0.00606968]
[1725190523463,3.17237695,2468.5,2468.4,0.00606968]
[1725190523866,3.17631318,2468.5,2468.4,0.00606968]
[1725190524068,3.67731947,2468.6,2468.4,0.00606968]
[1725190524268,0.10131009,2468.5,2468.4,0.00606968]
[1725190525071,0.3065149,2468.5,2468.4,0.00606968]
[1725190525272,3.98383437,2468.5,2468.4,0.00606968]
[1725190530476,3.98386223,2468.5,2468.4,0.00606968]
[1725190531475,3.98384818,2468.5,2468.4,0.00606968]
[1725190533782,6.88511947,2468.5,2468.4,0.00606968]
[1725190534277,3.67731947,2468.5,2468.4,0.00606968]
[1725190534469,3.98386815,2468.5,2468.4,0.00606968]
[1725190534868,0.30654868,2468.5,2468.4,4.05726968]
[1725190535074,9.46203405,2468.9,2468.4,11.11708078]
[1725190535075,3.18421799,2468.9,2468.4,11.11708078]
[1725190535268,0.00606968,2468.9,2468.8,3.2078]
[1725190535683,3.17814831,2469.5,2468.8,16.34338748]
[1725190535880,3.17814831,2469.5,2469.2,3.2078]
[1725190536184,3.17814831,2469.6,2469.3,0.7499]
[1725190536478,3.17814831,2469.8,2469.4,4.0496]
[1725190536675,0.00606968,2469.7,2469.3,8.3159]
[1725190537082,0.00606968,2469.7,2469.3,1.1183]
[1725190537280,0.38556968,2469.7,2469.3,1.1183]
[1725190537880,4.26149121,2469.6,2469.3,0.7499]
[1725190539179,0.38556968,2469.7,2469.3,4.7995]
[1725190539380,0.38556968,2469.7,2469.3,0.7499]
[1725190553894,0.38556968,2469.7,2469.3,0.3803]
[1725190557491,0.38556968,2469.7,2469.2,3.2078]
[1725190557800,4.24315774,2469.6,2469.2,3.2078]
[1725190558200,0.3845,2469.5,2469.2,3.2078]
[1725190559898,0.7662,2469.5,2469.2,3.2078]
[1725190560989,4.68235738,2469.4,2468.8,6.3548]
[1725190561791,4.68235738,2469.4,2468.8,3.2078]
[1725190561998,7.89015738,2469.4,2468.8,3.2078]
[1725190562191,4.68235738,2469.4,2468.8,3.2078]
[1725190563913,0.3839,2469.3,2468.8,3.2078]
[1725190564296,4.27301936,2469.2,2468.8,3.2078]
[1725190564604,0.7662,2469.5,2469.1,3.2078]
[1725190564800,0.7662,2469.5,2469.2,0.7379]
[1725190565003,0.7662,2469.5,2469.2,0.3708]
[1725190565202,0.7662,2469.5,2469.1,3.2078]
[1725190565398,0.7662,2469.5,2468.8,0.3671]
[1725190565399,4.28609865,2469.4,2468.8,3.9457]
[1725190566608,0.7662,2469.5,2468.8,3.9457]
[1725190568508,0.00606968,2469.7,2469.4,3.2078]
[1725190568700,0.00606968,2469.7,2469.5,1.1009]
[1725190570617,0.00606968,2469.7,2469.5,0.3781]
[1725190571111,4.25858478,2469.7,2469.4,3.2078]
[1725190571406,9.44388309,2469.6,2469.4,3.2078]
[1725190571612,0.19945149,2469.5,2469.4,3.2078]
[1725190571809,4.24905149,2469.5,2469.4,3.2078]
[1725190572010,8.88633458,2469.5,2469.4,3.2078]
[1725190572214,8.68688309,2469.5,2469.4,3.2078]
[1725190572706,1.33668049,2469.6,2469.4,3.2078]
[1725190573609,4.0496,2469.5,2469.4,3.2078]
[1725190573811,8.68459632,2469.5,2469.4,3.2078]
[1725190574512,8.68459632,2469.5,2468.9,0.378]
[1725190574513,8.68459632,2469.5,2468.9,3.5858]
[1725190574705,4.63499632,2469.5,2468.9,3.5858]
[1725190577114,7.81314463,2469.5,2468.9,3.5858]
[1725190578515,3.17814831,2469.4,2468.9,3.5858]
[1725190578905,4.36615213,2469.3,2468.9,3.5858]
[1725190579306,0.3728,2469.2,2468.9,3.5858]
[1725190579618,0.3882,2469.1,2468.9,3.5858]
[1725190580321,0.3882,2469.1,2468.9,0.378]
[1725190580514,0.3882,2469.1,2468.9,3.5858]
[1725190580914,0.3882,2469.1,2468.9,0.378]
[1725190581218,0.3882,2469.1,2468.9,3.5858]
[1725190581513,0.3882,2469.1,2468.9,0.378]
[1725190581809,0.3882,2469.1,2468.9,3.5858]
[1725190582019,7.54430044,2469.3,2468.9,3.5858]
[1725190582222,0.7055,2469.2,2468.9,3.5858]
[1725190583715,7.54430044,2469.3,2468.9,3.5858]
[1725190583917,7.54430044,2469.3,2469.0,0.7755]
[1725190585510,4.36615213,2469.3,2469.0,0.7755]
[1725190587319,7.26814847,2469.5,2469.2,3.2078]
[1725190587618,4.09000016,2469.5,2469.3,0.3849]
[1725190588123,4.09000016,2469.5,2469.3,4.4345]
[1725190590520,0.00606968,2469.7,2469.4,4.0496]
[1725190590715,0.00606968,2469.7,2469.3,0.3849]
[1725190591419,0.00606968,2469.7,2469.3,4.4345]
[1725190591615,0.00606968,2469.7,2469.3,0.3849]
[1725190592626,0.00606968,2469.7,2469.3,4.4345]
[1725190593220,0.00606968,2469.7,2469.3,0.3849]
[1725190593825,0.00606968,2469.7,2469.5,3.2078]
[1725190594025,0.00606968,2469.7,2469.6,0.7552]
[1725190594423,0.00606968,2469.7,2469.6,4.804]
[1725190595516,0.00606968,2469.7,2469.6,10.804]
[1725190595718,3.17814831,2470.3,2469.6,10.804]
[1725190595920,3.17814831,2470.5,2470.1,3.2078]
[1725190596118,3.17814831,2470.5,2469.8,3.2078]
[1725190596119,0.3743,2470.4,2469.8,3.2078]
[1725190596631,0.7645,2470.4,2469.8,3.2078]
[1725190596823,0.00606968,2470.3,2469.9,0.00606968]
[1725190597630,0.00606968,2470.3,2469.9,3.21386968]
[1725190597928,0.00606968,2470.3,2469.9,0.00606968]
[1725190598846,7.39142769,2470.2,2469.9,0.00606968]
[1725190599022,11.44022769,2470.2,2469.9,0.00606968]
[1725190599222,0.3571,2470.1,2469.9,0.00606968]
[1725190599627,4.54975468,2470.0,2469.9,0.00606968]
[1725190600032,8.59855468,2470.0,2469.9,0.00606968]
[1725190600526,8.59855468,2470.0,2469.3,0.3622]
[1725190600527,14.59855468,2470.0,2469.3,0.3622]
[1725190600833,0.7589,2469.9,2469.3,0.3622]
[1725190601027,0.7589,2469.9,2469.2,8.3788]
[1725190601230,4.43642137,2469.8,2469.2,8.769]
[1725190601531,4.43642137,2469.8,2469.3,0.00606968]
[1725190601730,0.3571,2469.7,2469.3,0.00606968]
[1725190604023,0.55500611,2469.7,2469.3,0.00606968]
[1725190604220,4.61513016,2469.6,2469.3,0.00606968]
[1725190604424,0.3743,2469.5,2469.3,0.00606968]
[1725190604631,0.3812,2469.4,2469.3,0.00606968]
[1725190604833,4.75656,2469.4,2469.3,0.00606968]
[1725190605834,8.80616,2469.4,2469.3,0.00606968]
[1725190607935,8.80616,2469.4,2468.6,3.146]
[1725190607936,14.80616,2469.4,2468.6,3.146]
[1725190608248,3.5676,2469.3,2468.6,3.146]
[1725190608529,0.3598,2469.3,2468.6,3.146]
[1725190608736,4.40697191,2469.2,2468.6,3.146]
[1725190609048,0.3652,2469.1,2468.7,0.00606968]
[1725190611335,4.40697191,2469.2,2468.8,3.2078]
[1725190611537,0.3598,2469.3,2468.9,1.1041]
[1725190612237,0.3598,2469.3,2468.9,0.3683]
[1725190612926,0.3598,2469.3,2468.8,3.2078]
[1725190613130,0.3598,2469.3,2468.8,3.5761]
[1725190620242,0.3598,2469.3,2468.9,0.3874]
[1725190623244,0.3598,2469.3,2468.8,0.3683]
[1725190623442,4.36493805,2469.2,2468.8,0.7535]
[1725190623646,0.3598,2469.3,2468.8,0.7535]
[1725190623845,0.3598,2469.3,2468.9,0.3673]
[1725190627851,0.3812,2469.4,2468.9,0.3673]
[1725190628051,0.7562,2469.4,2468.9,0.3673]
[1725190628237,4.53216895,2469.3,2468.9,0.3673]
[1725190636952,3.17814831,2470.0,2469.1,3.2078]
[1725190637157,0.3783,2470.0,2469.6,3.2078]
[1725190637347,0.3783,2470.0,2469.7,1.0749]
[1725190637744,3.2078,2470.2,2469.7,1.0749]
[1725190637952,0.3783,2470.2,2469.7,1.0749]
[1725190638176,0.3783,2470.2,2469.7,0.3632]
[1725190638554,4.54825462,2470.1,2469.5,3.146]
[1725190638763,0.7637,2470.0,2469.5,3.146]
[1725190639348,3.9715,2470.0,2469.5,3.146]
[1725190639560,4.38446915,2469.9,2469.5,3.146]
[1725190640058,0.3831,2469.8,2469.5,3.146]
[1725190640858,0.3831,2469.8,2469.6,0.3784]
[1725190641057,0.3831,2469.8,2469.5,3.146]
[1725190646662,0.7637,2470.0,2469.6,3.2078]
[1725190646866,3.17814831,2470.1,2469.7,0.3685]
[1725190647167,0.3619,2470.2,2469.9,3.2078]
[1725190647358,0.3619,2470.2,2470.0,0.3604]
[1725190647558,0.3619,2470.2,2470.1,0.3685]
[1725190649057,0.00606968,2470.3,2470.1,0.3685]
[1725190649368,0.00606968,2470.3,2470.1,4.4165]
[1725190651265,0.00606968,2470.3,2470.1,7.6243]
[1725190652065,0.00606968,2470.3,2470.1,3.5763]
[1725190654177,0.00606968,2470.3,2470.1,3.2078]
[1725190655773,0.00606968,2470.3,2470.0,0.00606968]
[1725190655969,0.00606968,2470.3,2470.1,3.2078]
[1725190657260,0.00606968,2470.3,2470.0,0.00606968]
[1725190661076,0.00606968,2470.3,2470.0,3.21386968]
[1725190661280,0.00606968,2470.3,2470.1,0.3821]
[1725190661480,0.00606968,2470.3,2470.1,0.7594]
[1725190661977,0.00606968,2470.3,2470.1,4.8074]
[1725190662168,0.00606968,2470.3,2470.2,4.4066]
[1725190665777,0.00606968,2470.3,2470.2,4.048]
[1725190665974,0.00606968,2470.3,2470.1,0.7594]
[1725190666477,0.00606968,2470.3,2470.0,3.21386968]
[1725190670186,0.00606968,2470.3,2470.0,0.00606968]
[1725190670688,0.37406968,2470.3,2470.0,0.00606968]
[1725190670987,0.73946968,2470.3,2470.0,0.00606968]
[1725190678379,4.78746968,2470.3,2470.0,0.00606968]
[1725190678587,11.49356131,2470.2,2469.4,3.2078]
[1725190678782,7.44556131,2470.2,2469.4,3.2078]
[1725190679085,10.62370962,2470.2,2469.4,3.2078]
[1725190679688,10.62370962,2470.2,2469.6,0.00606968]
[1725190681081,3.17814831,2470.1,2469.6,0.00606968]
[1725190681488,4.57616845,2470.0,2469.6,0.00606968]
[1725190681683,0.3831,2469.9,2469.6,0.00606968]
[1725190681882,0.7588,2469.9,2469.6,0.00606968]
[1725190682090,4.57616845,2469.8,2469.6,0.00606968]
[1725190687689,0.3548,2470.0,2469.6,3.21386968]
[1725190687891,0.3548,2470.0,2469.7,1.1275]
[1725190688191,0.7428,2470.2,2469.7,1.1275]
[1725190688389,0.3606,2470.1,2469.7,0.3872]
[1725190688591,5.003026,2470.1,2469.7,0.3872]
[1725190688980,5.003026,2470.1,2469.7,0.7595]
[1725190690483,0.3606,2470.1,2469.7,1.1219]
[1725190692491,0.3606,2470.1,2469.7,0.7595]
[1725190692987,0.3606,2470.1,2469.7,0.3872]
[1725190706801,0.3606,2470.1,2469.7,3.595]
[1725190707001,0.3606,2470.1,2469.7,0.3872]
[1725190707204,0.3606,2470.1,2469.7,3.595]
[1725190708402,0.3606,2470.1,2469.7,0.3872]
[1725190708594,4.41865888,2470.0,2469.6,0.00606968]
[1725190709101,7.62645888,2470.0,2469.6,0.00606968]
[1725190709312,3.17515109,2469.8,2469.6,0.00606968]
[1725190709497,0.7541,2469.7,2469.6,0.00606968]
[1725190709690,8.81135613,2469.7,2469.6,0.00606968]
[1725190709895,12.86015613,2469.7,2469.6,0.00606968]
[1725190711499,12.96142268,2469.7,2469.6,0.00606968]
[1725190711897,12.86015613,2469.7,2469.6,0.00606968]
[1725190714403,9.68500504,2469.7,2469.6,0.00606968]
[1725190715108,12.86015613,2469.7,2469.6,0.00606968]
[1725190715303,9.68500504,2469.7,2469.6,0.00606968]
[1725190715900,3.17515109,2469.9,2469.6,0.00606968]
[1725190716403,3.17515109,2469.9,2469.6,1.13756968]
[1725190716808,4.30595109,2470.0,2469.6,1.13756968]
[1725190717610,3.17515109,2469.9,2469.6,1.13756968]
[1725190718703,4.30595109,2470.0,2469.6,1.13756968]
[1725190719895,3.17515109,2469.9,2469.6,1.13756968]
[1725190727514,4.30595109,2470.0,2469.6,1.13756968]
[1725190735419,3.17515109,2470.1,2469.6,1.13756968]
[1725190735614,4.32185109,2470.1,2469.6,1.13756968]
[1725190739815,4.32185109,2470.1,2469.6,0.76196968]
[1725190740119,4.32185109,2470.1,2469.6,0.39236968]
[1725190740318,3.17515109,2470.0,2469.6,0.39236968]
[1725190740519,4.32185109,2470.1,2469.6,0.39236968]
[1725190741418,3.17515109,2470.0,2469.6,0.39236968]
[1725190743245,3.17515109,2470.0,2469.6,0.00606968]
[1725190745726,3.17515109,2469.8,2469.6,0.00606968]
[1725190745927,0.7234,2469.7,2469.6,0.00606968]
[1725190746119,9.12173269,2469.7,2469.6,0.00606968]
[1725190746318,13.2717996,2469.7,2469.6,0.00606968]
[1725190748029,9.2229996,2469.7,2469.6,0.00606968]
[1725190748228,4.46419423,2469.7,2469.6,0.00606968]
[1725190748531,3.17515109,2469.9,2469.6,4.05486968]
[1725190748725,0.3738,2469.9,2469.6,0.00606968]
[1725190749225,3.54895109,2469.9,2469.6,0.00606968]
[1725190750215,3.17515109,2469.9,2469.8,3.2078]
[1725190750621,3.17515109,2469.9,2469.8,13.9878]
[1725190751528,3.17515109,2470.0,2469.8,13.9878]
[1725190751728,3.17515109,2470.0,2469.9,4.0488]
[1725190752129,3.17515109,2470.0,2469.9,13.2566]
[1725190753126,3.17515109,2470.0,2469.9,7.2566]
[1725190753328,3.17515109,2470.0,2469.9,13.2566]
[1725190754837,3.17515109,2470.0,2469.9,10.0488]
[1725190755033,3.17515109,2470.0,2469.9,7.2566]
[1725190756737,0.00606968,2470.3,2469.9,7.2566]
[1725190756936,0.00606968,2470.3,2469.9,3.2078]
[1725190762145,0.00606968,2470.3,2469.9,7.2566]
[1725190764045,0.00606968,2470.3,2470.0,4.0488]
[1725190764342,0.00606968,2470.3,2470.1,4.422]
[1725190764639,0.00606968,2470.3,2470.1,0.374]
[1725190764842,0.00606968,2470.3,2470.2,4.4042]
[1725190765046,0.00606968,2470.3,2470.2,7.612]
[1725190765249,3.37977465,2471.0,2470.2,13.612]
[1725190765445,1.33942356,2471.0,2470.7,3.2078]
[1725190765947,1.33942356,2471.0,2470.5,3.139]
[1725190766146,4.51457465,2471.0,2470.5,3.139]
[1725190766345,4.52064433,2471.0,2470.5,3.139]
[1725190767546,1.34549324,2471.0,2470.5,3.139]
[1725190772245,1.34549324,2471.0,2470.5,6.3468]
[1725190772445,1.34549324,2471.0,2470.6,0.3563]
[1725190773149,1.34549324,2471.0,2470.6,0.7162]
[1725190773348,1.34549324,2471.0,2470.6,1.0773]
[1725190781858,1.34549324,2471.0,2470.6,0.7162]
[1725190783765,1.34549324,2471.0,2470.6,0.3563]
[1725190790269,1.34549324,2471.0,2470.7,0.7423]
[1725190791561,1.34549324,2471.0,2470.6,0.3563]
[1725190804672,1.34549324,2471.0,2470.5,3.139]
[1725190804979,15.11096287,2470.9,2470.0,3.2078]
[1725190805180,15.11096287,2470.9,2470.0,3.5971]
[1725190805181,3.17515109,2470.8,2470.0,3.5971]
[1725190806475,3.17515109,2470.8,2470.3,3.2078]
[1725190806669,3.17515109,2470.8,2470.4,0.3522]
[1725190809276,3.17515109,2470.7,2470.4,0.3522]
[1725190809481,0.3883,2470.6,2470.4,0.3522]
[1725190809682,0.7555,2470.6,2470.4,0.3522]
[1725190809877,1.1271,2470.6,2470.4,0.3522]
[1725190813679,1.1271,2470.6,2470.0,4.2680038]
[1725190813985,1.1271,2470.6,2470.1,0.3663]
[1725190814784,1.1271,2470.6,2470.3,3.2078]
[1725190815476,1.1271,2470.6,2470.3,3.5628]
[1725190817690,1.1271,2470.6,2470.4,0.3682]
[1725190821492,1.1271,2470.6,2470.5,3.2078]
[1725190821683,1.1271,2470.6,2470.4,0.3682]
[1725190839407,1.1271,2470.6,2470.3,0.355]
[1725190840817,1.1271,2470.6,2470.3,3.5628]
[1725190844209,1.1271,2470.6,2470.3,3.2078]
[1725190847410,1.1271,2470.6,2470.2,3.4973]
[1725190847612,1.1271,2470.6,2470.0,4.2680038]
[1725190847613,0.10122909,2470.5,2470.0,4.2680038]
[1725190847814,3.27638415,2470.4,2470.0,3.2078]
[1725190848119,3.17515109,2470.4,2470.0,3.2078]
[1725190848324,0.3544,2470.3,2470.0,3.2078]
[1725190848713,0.3607,2470.2,2470.0,3.2078]
[1725190849119,0.3544,2470.3,2470.1,0.7244]
[1725190851314,0.3544,2470.3,2470.0,4.2680038]
[1725190851619,0.3863,2470.2,2470.0,3.2078]
[1725190851821,0.3597,2470.1,2470.0,3.2078]
[1725190859816,0.3544,2470.3,2470.0,3.2078]
[1725190860215,0.3544,2470.3,2470.1,0.3659]
[1725190860420,0.3544,2470.3,2470.2,0.3616]
[1725190860624,0.3544,2470.3,2470.2,0.7226]
[1725190862727,0.3544,2470.3,2470.2,3.9304]
[1725190862929,7.26515125,2470.6,2470.2,3.5688]
[1725190863131,0.7378,2470.3,2470.2,3.5688]
[1725190864135,0.3583,2470.5,2470.2,3.97363]
[1725190864321,0.3583,2470.5,2470.3,0.3688]
[1725190864625,0.3583,2470.5,2470.3,0.77362]
[1725190865019,0.7297,2470.6,2470.3,0.3688]
[1725190865220,0.7297,2470.6,2470.4,0.3642]
[1725190865632,0.7297,2470.6,2470.5,0.379]
[1725190865936,0.3681,2470.6,2470.5,0.379]
[1725190869835,0.3681,2470.6,2470.5,3.5868]
[1725190874730,0.3818,2470.7,2470.5,3.5868]
[1725190879624,0.3818,2470.7,2470.5,0.379]
[1725190894348,0.3818,2470.7,2470.3,6.74362]
[1725190895850,0.40478,2470.6,2470.3,6.3388]
[1725190896149,0.40479,2470.5,2470.3,3.2078]
[1725190896448,0.3818,2470.7,2470.3,3.2078]
[1725190896449,0.7593,2470.4,2470.3,3.2078]
[1725190896650,1.1135,2470.4,2470.3,3.2078]
[1725190899048,0.40483,2470.3,2470.0,4.6415038]
[1725190899253,1.1135,2470.4,2470.0,6.3358]
[1725190900260,0.40483,2470.3,2470.0,6.3358]
[1725190900446,0.40486,2470.1,2470.0,6.3358]
[1725190900652,0.40486,2470.1,2469.8,3.128]
[1725190900861,1.1239,2470.0,2469.8,3.128]
[1725190904153,0.40485,2470.2,2469.8,7.1768]
[1725190904356,10.94453247,2470.9,2470.2,0.40483]
[1725190904357,3.57992109,2470.7,2470.2,0.40483]
[1725190904557,0.40477,2470.7,2470.4,3.2078]
[1725190905254,1.52095,2470.8,2470.4,3.2078]
[1725190905457,4.69610109,2470.8,2470.4,3.2078]
[1725190905658,1.52095,2470.8,2470.4,3.2078]
[1725190908771,1.1162,2470.8,2470.4,3.61261]
[1725190910666,1.1162,2470.8,2470.4,6.74061]
[1725190910970,0.00606968,2471.0,2470.6,0.40477]
[1725190911166,0.00606968,2471.0,2470.7,1.1286]
[1725190914778,0.00606968,2471.0,2470.8,0.40473]
[1725190916776,0.00606968,2471.0,2470.9,0.40473]
[1725190917376,0.00606968,2471.0,2470.9,10.45193]
[1725190918976,0.00606968,2471.0,2470.9,4.45193]
[1725190919172,0.00606968,2471.0,2470.9,10.45193]
[1725190919472,0.00606968,2471.0,2470.9,4.45193]
[1725190919974,0.00606968,2471.0,2470.9,10.45193]
[1725190920175,0.00606968,2471.0,2470.9,4.45193]
[1725190920475,0.00606968,2471.0,2470.9,10.45193]
[1725190921064,0.3556,2471.6,2470.9,10.0472]
[1725190921267,0.3632,2471.4,2471.0,3.6125]
[1725190921471,0.3632,2471.4,2471.1,0.7482]
[1725190921772,0.76785,2471.4,2471.2,3.128]
[1725190921962,0.3632,2471.4,2471.2,3.128]
[1725190922873,0.76785,2471.4,2471.2,3.128]
[1725190927779,0.40466,2471.3,2471.2,3.128]
[1725190928778,0.76785,2471.4,2471.2,3.128]
[1725190929777,0.3632,2471.4,2471.1,0.00606968]
[1725190929977,0.40468,2471.2,2471.1,3.13006968]
[1725190930168,0.40467,2471.3,2471.1,3.13006968]
[1725190930373,0.40467,2471.3,2471.1,3.49626968]
[1725190930574,0.40468,2471.2,2471.1,3.49626968]
[1725190930871,0.77428,2471.2,2471.1,3.49626968]
[1725190933676,0.77428,2471.2,2471.1,6.70406968]
[1725190935382,0.77428,2471.2,2471.1,3.58006968]
[1725190935574,4.82068,2471.2,2471.1,0.00606968]
[1725190935973,0.77428,2471.2,2471.1,0.00606968]
[1725190936573,4.82068,2471.2,2471.1,0.00606968]
[1725190936769,0.3696,2471.2,2471.1,3.21386968]
[1725190936976,0.77428,2471.2,2471.1,3.21386968]
[1725190940185,0.3696,2471.2,2471.1,3.21386968]
[1725190940687,0.77428,2471.2,2471.1,3.21386968]
[1725190941485,0.77428,2471.2,2471.1,0.00606968]
[1725190941786,0.77428,2471.2,2471.1,3.21386968]
[1725190942785,0.77428,2471.2,2471.1,0.00606968]
[1725190943086,0.77428,2471.2,2471.1,3.21386968]
[1725190943787,0.77428,2471.2,2471.1,0.00606968]
[1725190943988,0.77428,2471.2,2471.1,3.21386968]
[1725190945385,0.3696,2471.2,2471.1,3.21386968]
[1725190945589,0.3696,2471.2,2471.1,3.56886968]
[1725190945786,0.3696,2471.2,2471.1,3.93106968]
[1725190947384,0.40466,2471.3,2471.1,3.93106968]
[1725190947890,0.3632,2471.4,2471.1,4.33575968]
[1725190948186,0.37306968,2471.5,2471.1,4.33575968]
[1725190948187,0.77769968,2471.5,2471.1,4.33575968]
[1725190948395,1.15369968,2471.5,2471.1,4.33575968]
[1725190950585,1.15369968,2471.5,2471.1,1.12795968]
[1725190950797,1.15369968,2471.5,2471.3,3.2078]
[1725190951290,1.15369968,2471.5,2471.4,0.3825]
[1725190952390,0.41069968,2471.5,2471.4,0.3825]
[1725190955983,0.40464,2471.4,2471.3,3.2078]
[1725190956186,0.3842,2471.4,2471.3,3.2078]
[1725190956679,0.78884,2471.4,2471.3,3.2078]
[1725190956883,0.41070968,2471.5,2471.3,7.2542]
[1725190957082,0.41070968,2471.5,2471.3,3.2078]
[1725190958286,0.00606968,2471.5,2471.3,3.2078]
[1725190959795,0.00606968,2471.5,2471.2,0.78177]
[1725190960093,0.00606968,2471.5,2471.3,3.2078]
[1725190960688,0.00606968,2471.5,2471.2,0.78177]
[1725190960903,0.00606968,2471.5,2471.3,3.2078]
[1725190961284,0.41069968,2471.5,2471.3,3.2078]
[1725190961684,0.41069968,2471.5,2471.2,0.78177]
[1725190962592,0.41069968,2471.5,2471.3,3.2078]
[1725190962797,0.00606968,2471.5,2471.3,3.2078]
[1725190965101,0.41069968,2471.5,2471.3,3.2078]
[1725190965804,0.00606968,2471.5,2471.3,3.2078]
[1725190967401,0.41069968,2471.5,2471.3,3.2078]
[1725190968601,0.00606968,2471.5,2471.3,3.2078]
[1725190968800,0.00606968,2471.5,2471.2,0.78177]
[1725190969103,0.00606968,2471.5,2471.3,3.2078]
[1725190969504,0.00606968,2471.5,2471.2,0.78177]
[1725190969706,0.00606968,2471.5,2471.3,3.2078]
[1725190970501,0.41069968,2471.5,2471.3,3.2078]
[1725190970906,0.3583,2471.4,2471.3,3.2078]
[1725190973005,0.41069968,2471.5,2471.3,7.2542]
[1725190973206,0.41069968,2471.5,2471.3,3.2078]
[1725190974710,0.00606968,2471.5,2471.3,3.2078]
[1725190974910,0.00606968,2471.5,2471.3,6.3298]
[1725190976507,0.00606968,2471.5,2471.3,3.122]
[1725190976709,0.00606968,2471.5,2471.3,6.3298]
[1725190977100,0.00606968,2471.5,2471.3,3.122]
[1725190977514,0.00606968,2471.5,2471.3,6.3298]
[1725190978503,0.00606968,2471.5,2471.3,3.122]
[1725190978713,0.00606968,2471.5,2471.3,6.3298]
[1725190979103,0.00606968,2471.5,2471.3,3.122]
[1725190979503,0.00606968,2471.5,2471.3,6.73446]
[1725190979914,0.00606968,2471.5,2471.4,0.40464]
[1725190980213,0.3587,2471.8,2471.6,0.40461]
[1725190980409,0.3587,2471.8,2471.7,3.2078]
[1725190982110,0.3587,2471.8,2471.4,3.2078]
[1725190982111,4.4043,2471.8,2471.4,3.2078]
[1725190982308,0.40468,2471.2,2471.1,3.12806968]
[1725190982912,0.7628,2471.5,2471.1,7.57914968]
[1725190983109,0.7628,2471.5,2471.3,3.2078]
[1725190984416,0.36,2471.4,2471.3,3.2078]
[1725190986211,0.36,2471.4,2471.3,7.2542]
[1725190986411,0.7628,2471.5,2471.3,7.635]
[1725190986605,0.7628,2471.5,2471.3,3.5886]
[1725190986806,0.3827,2471.7,2471.4,0.40463]
[1725190987007,0.3827,2471.7,2471.6,3.2078]
[1725190987920,0.7759,2471.8,2471.6,3.2078]
[1725190988326,0.7759,2471.8,2471.7,0.3718]
[1725190988915,0.389,2471.8,2471.7,0.3718]
[1725190990712,0.79358,2471.8,2471.6,3.2078]
[1725190991621,0.389,2471.8,2471.6,3.2078]
[1725190991915,0.79359,2471.8,2471.6,3.2078]
[1725190994711,0.4046,2471.7,2471.6,3.2078]
[1725190998326,0.79359,2471.8,2471.6,3.2078]
[1725190999620,0.4046,2471.7,2471.6,3.2078]
[1725191000022,4.4502,2471.7,2471.6,3.2078]
[1725191001119,0.40462,2471.6,2471.4,6.3268]
[1725191001321,0.3707,2471.5,2471.4,6.3268]
[1725191001523,0.7462,2471.5,2471.4,6.3268]
[1725191002219,1.15083,2471.5,2471.4,6.3268]
[1725191002933,1.15083,2471.5,2471.4,3.2078]
[1725191003634,5.19723,2471.5,2471.4,3.2078]
[1725191004032,0.40468,2471.2,2471.1,0.00606968]
[1725191004331,0.40468,2471.2,2471.1,3.12506968]
[1725191008129,0.40467,2471.3,2471.1,3.12506968]
[1725191010531,0.40468,2471.2,2471.1,3.12506968]
[1725191010926,0.40468,2471.2,2471.1,0.00606968]
[1725191011440,4.45108,2471.2,2471.1,0.00606968]
[1725191012726,10.0464,2471.2,2470.6,2.023]
[1725191012934,0.40478,2470.6,2470.5,4.5907404]
[1725191013132,0.40479,2470.5,2470.4,6.6803]
[1725191013332,0.40479,2470.5,2470.4,3.4725]
[1725191014137,0.40478,2470.6,2470.4,3.4725]
[1725191014327,0.00606968,2470.7,2470.4,3.4725]
[1725191014328,0.40479,2470.5,2470.4,3.4725]
[1725191014630,0.40481,2470.4,2470.2,0.00606968]
[1725191014829,0.40481,2470.4,2470.2,0.36026968]
[1725191016734,0.38976968,2470.7,2470.3,3.2078]
[1725191016939,0.41082968,2470.7,2470.3,3.2078]
[1725191017136,0.00606968,2470.7,2470.3,3.2078]
[1725191017829,0.40478,2470.6,2470.3,3.2078]
[1725191018336,0.3811,2470.5,2470.3,3.2078]
[1725191019635,0.41083968,2470.7,2470.3,3.2078]
[1725191019838,0.79473968,2470.7,2470.3,3.2078]